[Event "Brasil Copel Telecom SESC 2018"]
[Site "Caioba Matinhos"]
[Date "2018.08.02"]
[Round "4"]
[White "Brito, Luismar"]
[Black "Cubas, Jose Fernando"]
[Result "0-1"]
[ECO "A03"]
[WhiteElo "2356"]
[BlackElo "2489"]
[Annotator "RC"]
[PlyCount "73"]
[EventDate "2018.08.01"]
[EventType "swiss"]
[EventCountry "BRA"]
[SourceTitle "playchess.com"]
[Source "ChessBase"]
[SourceQuality "1"]
[TimeControl "5400+30"]

1. b3 {[%emt 0:00:00]} Nf6 {[%emt 0:03:17]} 2. Bb2 {[%emt 0:00:01]} d5 {[%emt 0:01:40]} 3. e3 {[%emt 0:00:24]} g6 {[%emt 0:01:29]} 4. f4 {[%emt 0:00:15]} Bg7 {[%emt 0:00:09]} 5. Nf3 {[%emt 0:00:05]} O-O {[%emt 0:00:14]} 6. Bd3 {[%emt 0:00:26]} c5 {[%emt 0:01:01]} 7. O-O {[%emt 0:00:36]} Nc6 {[%emt 0:00:08]} 8. Nc3 {[%emt 0:02:54]} a6 {[%emt 0:01:24]} 9. Qe1 {[%emt 0:02:54]} b5 {[%emt 0:08:42]} 10. Qh4 {[%emt 0:02:01]} c4 {[%emt 0:01:15]} 11. Be2 {[%emt 0:01:17]} d4 {[%emt 0:09:03]} 12. exd4 {[%emt 0:03:35]} Nxd4 {[%emt 0:00:16]} 13. Bd1 {[%emt 0:04:18]} Bb7 {[%emt 0:06:20]} 14. Qe1 {[%emt 0:04:15]} Bxf3 {[%emt 0:03:01]} 15. Bxf3 {[%emt 0:00:26]} Nxc2 {[%emt 0:00:15]} 16. Qe2 {[%emt 0:02:37]} Nxa1 {[%emt 0:02:18]} 17. Bxa8 {[%emt 0:00:52]} Nxb3 {[%emt 0:00:51]} 18. axb3 {[%emt 0:00:24]} Qb6+ {[%emt 0:00:08]} 19. Kh1 {[%emt 0:00:41]} Rxa8 {[%emt 0:00:06]} 20. bxc4 {[%emt 0:00:29]} bxc4 {[%emt 0:02:08]} 21. Ba3 {[%emt 0:00:36]} Rc8 {[%emt 0:09:26]} 22. Rb1 {[%emt 0:01:55]} Qd4 {[%emt 0:02:37]} 23. Bxe7 {[%emt 0:01:35]} Nh5 {[%emt 0:05:55]} 24. g3 {[%emt 0:05:20]} Qd7 {[%emt 0:08:24]} 25. Ba3 {[%emt 0:03:29]} Re8 {[%emt 0:02:10]} 26. Qxc4 {[%emt 0:02:27]} Qxd2 {[%emt 0:01:35]} 27. Ne4 {[%emt 0:00:11]} Qe3 {[%emt 0:05:15]} 28. Ng5 {[%emt 0:01:33]} Qa7 {[%emt 0:00:36]} 29. Qc6 {[%emt 0:04:10]} Rd8 {[%emt 0:01:02]} 30. Bc5 {[%emt 0:00:41]} Qa8 {[%emt 0:00:11]} 31. Rb7 {[%emt 0:00:51]} Rc8 {[%emt 0:04:01]} 32. Qd5 {[%emt 0:13:21]} Rxc5 {[%emt 0:00:29]} 33. Qxf7+ {[%emt 0:00:04]} Kh8 {[%emt 0:00:05]} 34. Qb3 {[%emt 0:04:20]} h6 {[%emt 0:01:42]} 35. Kg1 {[%emt 0:01:06]} Rb5 {[%emt 0:02:52]} 36. Rxb5 {[%emt 0:02:18]} axb5 {[%emt 0:02:14]} 37. Qf7 {[%emt 0:00:13]} 0-1

[Event "Brasil Copel Telecom SESC 2018"]
[Site "Caioba Matinhos"]
[Date "2018.08.02"]
[Round "4"]
[White "Gauche, Charles"]
[Black "Martins, Carlos"]
[Result "0-1"]
[ECO "A04"]
[WhiteElo "2248"]
[BlackElo "2258"]
[Annotator "RC"]
[PlyCount "53"]
[EventDate "2018.08.01"]
[EventType "swiss"]
[EventCountry "BRA"]
[SourceTitle "playchess.com"]
[Source "ChessBase"]
[SourceQuality "1"]
[TimeControl "5400+30"]

1. Nf3 {[%emt 0:00:00]} f5 {[%emt 0:02:09]} 2. e4 {[%emt 0:00:31]} fxe4 {[%emt 0:00:06]} 3. Ng5 {[%emt 0:00:03]} d5 {[%emt 0:00:08]} 4. d3 {[%emt 0:00:06]} Qd6 {[%emt 0:00:03]} 5. dxe4 {[%emt 0:03:34]} h6 {[%emt 0:01:59]} 6. Nf3 {[%emt 0:02:30]} dxe4 {[%emt 0:00:11]} 7. Nd4 {[%emt 0:00:06]} a6 {[%emt 0:06:38]} 8. Bc4 {[%emt 0:07:07]} Nf6 {[%emt 0:01:43]} 9. Nc3 {[%emt 0:03:13]} Bg4 {[%emt 0:09:03]} 10. Be2 {[%emt 0:04:18]} Bxe2 {[%emt 0:06:31]} 11. Ndxe2 {[%emt 0:00:26]} Nc6 {[%emt 0:04:08]} 12. Ng3 {[%emt 0:02:37]} O-O-O {[%emt 0:01:42]} 13. Be3 {[%emt 0:04:43]} Qb4 {[%emt 0:04:53]} 14. Qc1 {[%emt 0:00:32]} Qc4 {[%emt 0:00:22]} 15. Nge2 {[%emt 0:01:29]} e5 {[%emt 0:01:13]} 16. b3 {[%emt 0:02:20]} Qe6 {[%emt 0:01:54]} 17. O-O {[%emt 0:02:37]} Nd4 {[%emt 0:02:08]} 18. Kh1 {[%emt 0:05:45]} Bb4 {[%emt 0:05:06]} 19. a3 {[%emt 0:01:57]} Bxc3 {[%emt 0:02:12]} 20. Nxc3 {[%emt 0:00:13]} Qc6 {[%emt 0:00:48]} 21. Qb2 {[%emt 0:00:09]} Rhf8 {[%emt 0:04:10]} 22. Rae1 {[%emt 0:04:15]} Ng4 {[%emt 0:08:04]} 23. Bxd4 {[%emt 0:03:29]} Rxd4 {[%emt 0:03:24]} 24. Re2 {[%emt 0:01:22]} e3 {[%emt 0:03:23]} 25. f3 {[%emt 0:00:37]} Nf2+ {[%emt 0:01:16]} 26. Kg1 {[%emt 0:00:20]} Rxf3 {[%emt 0:07:12]} 27. Ree1 {[%emt 0:00:14]} 0-1

[Event "Brasil Copel Telecom SESC 2018"]
[Site "Caioba Matinhos"]
[Date "2018.08.03"]
[Round "5"]
[White "Di Berardino, Diego Rafael"]
[Black "Filgueiras, Nathan Felipe"]
[Result "1-0"]
[ECO "B54"]
[WhiteElo "2528"]
[BlackElo "2140"]
[Annotator "RC"]
[PlyCount "79"]
[EventDate "2018.08.01"]
[EventType "swiss"]
[EventCountry "BRA"]
[SourceTitle "playchess.com"]
[Source "ChessBase"]
[SourceQuality "1"]
[TimeControl "5400+30"]

1. e4 {[%emt 0:00:05]} c5 {[%emt 0:00:00]} 2. Nc3 {[%emt 0:00:16]} Nc6 {[%emt 0:00:20]} 3. Nge2 {[%emt 0:00:32]} d6 {[%emt 0:01:55]} 4. d4 {[%emt 0:00:59]} cxd4 {[%emt 0:01:54]} 5. Nxd4 {[%emt 0:00:05]} e5 {[%emt 0:00:13]} 6. Nf5 {[%emt 0:00:26]} Bxf5 {[%emt 0:03:02]} 7. exf5 {[%emt 0:00:03]} Nf6 {[%emt 0:01:36]} 8. g4 {[%emt 0:31:55]} d5 {[%emt 0:11:44]} 9. Bg2 {[%emt 0:00:06]} d4 {[%emt 0:03:56]} 10. Ne4 {[%emt 0:00:05]} Bb4+ {[%emt 0:01:30]} 11. Kf1 {[%emt 0:00:10]} Nd5 {[%emt 0:03:01]} 12. a3 {[%emt 0:17:36]} Be7 {[%emt 0:07:55]} 13. g5 {[%emt 0:03:14]} Qc7 {[%emt 0:10:31]} 14. Bh3 {[%emt 0:15:59]} Rd8 {[%emt 0:13:53]} 15. Qd3 {[%emt 0:03:30]} g6 {[%emt 0:08:05]} 16. f6 {[%emt 0:13:10]} Bd6 {[%emt 0:06:09]} 17. c4 {[%emt 0:05:14]} Nf4 {[%emt 0:06:49]} 18. Bxf4 {[%emt 0:00:20]} exf4 {[%emt 0:00:07]} 19. c5 {[%emt 0:00:47]} Be5 {[%emt 0:00:33]} 20. Bg4 {[%emt 0:00:21]} h5 {[%emt 0:03:07]} 21. gxh6 {[%emt 0:00:24]} Rxh6 {[%emt 0:01:19]} 22. h4 {[%emt 0:00:20]} Kf8 {[%emt 0:01:34]} 23. h5 {[%emt 0:01:25]} g5 {[%emt 0:00:50]} 24. Nxg5 {[%emt 0:01:30]} Bxf6 {[%emt 0:01:54]} 25. Nf3 {[%emt 0:00:48]} Ne5 {[%emt 0:01:46]} 26. Nxe5 {[%emt 0:00:03]} Qxe5 {[%emt 0:00:16]} 27. b4 {[%emt 0:00:17]} Re8 {[%emt 0:04:21]} 28. Bf3 {[%emt 0:00:05]} Re7 {[%emt 0:00:38]} 29. Rg1 {[%emt 0:01:16]} Bg7 {[%emt 0:01:35]} 30. Rc1 {[%emt 0:00:36]} Rhe6 {[%emt 0:01:22]} 31. b5 {[%emt 0:00:44]} Qf6 {[%emt 0:00:43]} 32. c6 {[%emt 0:00:56]} bxc6 {[%emt 0:00:43]} 33. bxc6 {[%emt 0:00:04]} Rc7 {[%emt 0:00:30]} 34. Rb1 {[%emt 0:00:07]} Qe5 {[%emt 0:01:31]} 35. Rb5 {[%emt 0:00:44]} Qe1+ {[%emt 0:00:31]} 36. Kg2 {[%emt 0:00:04]} Qc3 {[%emt 0:00:15]} 37. Qf5 {[%emt 0:02:00]} d3 {[%emt 0:00:57]} 38. Qd5 {[%emt 0:01:04]} Bf6 {[%emt 0:00:37]} 39. Rb8+ {[%emt 0:00:41]} Ke7 {[%emt 0:00:36]} 40. Qd8# {[%emt 0:00:35] Kf8 [%emt 00:01:53]} 1-0

[Event "Brasil Copel Telecom SESC 2018"]
[Site "Caioba Matinhos"]
[Date "2018.08.03"]
[Round "5"]
[White "Cubas, Jose Fernando"]
[Black "Carneiro, Vitor Roberto Castr"]
[Result "1-0"]
[ECO "B43"]
[WhiteElo "2489"]
[BlackElo "2429"]
[Annotator "ChessBase"]
[PlyCount "44"]
[EventDate "2018.08.01"]
[EventType "swiss"]
[EventCountry "BRA"]
[SourceTitle "playchess.com"]
[Source "ChessBase"]
[SourceQuality "1"]
[TimeControl "5400+30"]

1. e4 {[%emt 1:27:28]} c5 {[%emt 1:27:27]} 2. Nf3 {[%emt 0:00:29]} e6 {[%emt 0:00:28]} 3. d4 {[%emt 0:00:29]} cxd4 {[%emt 0:00:29]} 4. Nxd4 {[%emt 0:00:29]} a6 {[%emt 0:00:29]} 5. Nc3 {[%emt 0:00:30]} Qc7 {[%emt 0:00:29]} 6. Be3 {[%emt 0:00:34]} Nf6 {[%emt 0:00:30]} 7. f3 {[%emt 0:00:29]} b5 {[%emt 0:00:31]} 8. Bd3 {[%emt 0:00:37]} Bb7 {[%emt 0:00:29]} 9. O-O {[%emt 0:00:30]} d5 {[%emt 0:00:44]} 10. exd5 Nxd5 {[%emt 0:00:29]} 11. Nxd5 {[%emt 0:01:16]} Bxd5 {[%emt 0:00:29]} 12. Qd2 {[%emt 0:00:34]} Bd6 {[%emt 0:00:31]} 13. h3 {[%emt 0:00:33]} O-O {[%emt 0:00:37]} 14. Ne2 {[%emt 0:00:31]} Nd7 {[%emt 0:00:37]} 15. Kh1 {[%emt 0:00:31]} Rac8 {[%emt 0:00:43]} 16. c3 {[%emt 0:00:55]} Nf6 {[%emt 0:00:31]} 17. Bf4 {[%emt 0:01:01]} e5 {[%emt 0:00:29]} 18. Be3 {[%emt 0:00:32]} Bb7 {[%emt 0:00:33]} 19. Rad1 {[%emt 0:00:30]} Rfd8 {[%emt 0:00:29]} 20. Qe1 {[%emt 0:00:38]} Bc5 {[%emt 0:00:39]} 21. Bxc5 Qxc5 {[%emt 0:00:30]} 22. Ng3 {[%emt 0:01:04]} Re8 {[%emt 0:00:45]} 1-0

[Event "Brasil Copel Telecom SESC 2018"]
[Site "Caioba Matinhos"]
[Date "2018.08.03"]
[Round "6"]
[White "Sunye Neto, Jaime"]
[Black "Garcia Palermo, Carlos"]
[Result "1/2-1/2"]
[ECO "D69"]
[WhiteElo "2488"]
[BlackElo "2390"]
[Annotator "RC"]
[PlyCount "36"]
[EventDate "2018.08.01"]
[EventType "swiss"]
[EventCountry "BRA"]
[SourceTitle "playchess.com"]
[Source "ChessBase"]
[SourceQuality "1"]
[TimeControl "5400+30"]

1. c4 {[%emt 0:00:00]} e6 {[%emt 0:00:26]} 2. Nc3 {[%emt 0:00:00]} d5 {[%emt 0:00:06]} 3. d4 {[%emt 0:00:00]} Nf6 {[%emt 0:00:09]} 4. Nf3 {[%emt 0:00:21]} Be7 {[%emt 0:00:10]} 5. Bg5 {[%emt 0:00:17]} Nbd7 {[%emt 0:00:19]} 6. e3 {[%emt 0:00:09]} O-O {[%emt 0:00:30]} 7. Rc1 {[%emt 0:01:22]} c6 {[%emt 0:00:15]} 8. Bd3 {[%emt 0:04:38]} dxc4 {[%emt 0:00:12]} 9. Bxc4 {[%emt 0:00:08]} Nd5 {[%emt 0:00:06]} 10. Bxe7 {[%emt 0:00:09]} Qxe7 {[%emt 0:00:06]} 11. O-O {[%emt 0:02:06]} Nxc3 {[%emt 0:01:32]} 12. Rxc3 {[%emt 0:00:10]} e5 {[%emt 0:00:28]} 13. Nxe5 {[%emt 0:04:05]} Nxe5 {[%emt 0:00:10]} 14. dxe5 {[%emt 0:00:16]} Qxe5 {[%emt 0:00:06]} 15. Qc2 {[%emt 0:05:54]} Bf5 {[%emt 0:05:12]} 16. Bd3 {[%emt 0:01:32]} Bxd3 {[%emt 0:00:35]} 17. Rxd3 {[%emt 0:00:09]} Rad8 {[%emt 0:00:42]} 18. b3 {[%emt 0:01:08]} Qa5 {[%emt 0:04:05]} 1/2-1/2

[Event "Brasil Copel Telecom SESC 2018"]
[Site "Caioba Matinhos"]
[Date "2018.08.04"]
[Round "7"]
[White "Almiron, Antonio"]
[Black "Matsuura, Everaldo"]
[Result "1/2-1/2"]
[ECO "D11"]
[WhiteElo "2351"]
[BlackElo "2497"]
[Annotator "ChessBase"]
[PlyCount "52"]
[EventDate "2018.08.01"]
[EventType "swiss"]
[EventCountry "BRA"]
[SourceTitle "playchess.com"]
[Source "ChessBase"]
[SourceQuality "1"]
[TimeControl "5400+30"]

1. d4 {[%emt 0:00:00]} d5 {[%emt 0:01:52]} 2. c4 {[%emt 0:00:13]} c6 {[%emt 0:00:38]} 3. Nf3 {[%emt 0:02:15]} Nf6 {[%emt 0:01:24]} 4. g3 {[%emt 0:00:12]} Bf5 {[%emt 0:01:13]} 5. Nc3 {[%emt 0:00:10]} e6 {[%emt 0:01:40]} 6. Nh4 {[%emt 0:00:18]} Be4 {[%emt 0:05:39]} 7. f3 {[%emt 0:00:41]} Bg6 {[%emt 0:00:41]} 8. Qb3 {[%emt 0:00:20]} Qb6 {[%emt 0:07:35]} 9. Nxg6 {[%emt 0:02:39]} hxg6 {[%emt 0:00:51]} 10. c5 {[%emt 0:00:24]} Qc7 {[%emt 0:03:24]} 11. Bf4 {[%emt 0:00:12]} Qc8 {[%emt 0:00:52]} 12. e4 {[%emt 0:02:16]} Nh5 {[%emt 0:09:04]} 13. Ne2 {[%emt 0:24:04]} Nxf4 {[%emt 0:05:42]} 14. Nxf4 {[%emt 0:00:31]} Be7 {[%emt 0:09:37]} 15. Bd3 {[%emt 0:06:46]} Nd7 {[%emt 0:08:52]} 16. e5 {[%emt 0:02:28]} Qc7 {[%emt 0:08:38]} 17. Qc3 {[%emt 0:06:05]} g5 {[%emt 0:04:58]} 18. Ne2 {[%emt 0:00:25]} O-O-O {[%emt 0:02:54]} 19. O-O {[%emt 0:04:05]} Rh6 {[%emt 0:03:40]} 20. b4 {[%emt 0:01:42]} Rdh8 {[%emt 0:00:25]} 21. Rf2 {[%emt 0:01:24]} f6 {[%emt 0:00:17]} 22. exf6 {[%emt 0:00:40]} Bxf6 {[%emt 0:01:16]} 23. b5 {[%emt 0:02:13]} cxb5 {[%emt 0:07:09]} 24. Bxb5 {[%emt 0:00:03]} Nb8 {[%emt 0:00:33]} 25. Qe3 {[%emt 0:09:46]} Nc6 {[%emt 0:00:02]} 26. Bxc6 Qxc6 1/2-1/2

[Event "Brasil Copel Telecom SESC 2018"]
[Site "Caioba Matinhos"]
[Date "2018.08.04"]
[Round "8"]
[White "Umetsubo, Cesar Hidemitsu"]
[Black "Santiago, Yago De Moura"]
[Result "1/2-1/2"]
[ECO "D02"]
[WhiteElo "2404"]
[BlackElo "2460"]
[Annotator "ChessBase"]
[PlyCount "64"]
[EventDate "2018.08.01"]
[EventType "swiss"]
[EventCountry "BRA"]
[SourceTitle "playchess.com"]
[Source "ChessBase"]
[SourceQuality "1"]
[TimeControl "5400+30"]

1. d4 {[%emt 0:01:17]} d5 {[%emt 0:00:50]} 2. Nf3 {[%emt 0:01:12]} Nf6 {[%emt 0:00:09]} 3. Bf4 {[%emt 0:01:05]} e6 {[%emt 0:00:13]} 4. e3 {[%emt 0:00:07]} c5 {[%emt 0:00:06]} 5. c3 {[%emt 0:00:12]} Nc6 {[%emt 0:00:06]} 6. Nbd2 {[%emt 0:00:34]} cxd4 {[%emt 0:01:21]} 7. exd4 {[%emt 0:00:43]} Nh5 {[%emt 0:00:15]} 8. Be3 {[%emt 0:05:36]} Bd6 {[%emt 0:01:09]} 9. g3 {[%emt 0:00:11]} O-O {[%emt 0:01:20]} 10. Bd3 {[%emt 0:00:30]} g6 {[%emt 0:00:25]} 11. O-O {[%emt 0:01:11]} f6 {[%emt 0:03:48]} 12. c4 {[%emt 0:15:07]} Ng7 {[%emt 0:17:02]} 13. Re1 {[%emt 0:02:32]} Re8 {[%emt 0:06:28]} 14. Rc1 {[%emt 0:04:12]} Nb4 {[%emt 0:02:09]} 15. Bb1 {[%emt 0:00:44]} dxc4 {[%emt 0:00:21]} 16. Nxc4 {[%emt 0:01:11]} Bf8 {[%emt 0:00:44]} 17. Bd2 {[%emt 0:11:32]} Bd7 {[%emt 0:16:41]} 18. Qb3 {[%emt 0:05:25]} a5 {[%emt 0:06:48]} 19. Ne3 {[%emt 0:10:28]} a4 {[%emt 0:09:58]} 20. Qd1 {[%emt 0:06:45]} Bc6 {[%emt 0:00:22]} 21. a3 {[%emt 0:05:02]} Nd5 {[%emt 0:00:25]} 22. Ba2 {[%emt 0:01:25]} Nxe3 {[%emt 0:02:23]} 23. Bxe3 {[%emt 0:02:08]} Bd5 {[%emt 0:01:08]} 24. Bxd5 {[%emt 0:01:32]} Qxd5 {[%emt 0:00:23]} 25. Nd2 {[%emt 0:01:51]} Qb5 {[%emt 0:08:27]} 26. Ne4 {[%emt 0:01:25]} Be7 {[%emt 0:04:13]} 27. Qe2 {[%emt 0:01:10]} Qd7 {[%emt 0:02:55]} 28. Nc5 {[%emt 0:02:30]} Bxc5 {[%emt 0:02:46]} 29. dxc5 {[%emt 0:09:02]} Qc6 {[%emt 0:03:35]} 30. Rc4 Nf5 {[%emt 0:00:01]} 31. Bd2 {[%emt 0:00:08]} Qd5 {[%emt 0:00:06]} 32. Rcc1 Ng7 {[%emt 0:00:03]} 1/2-1/2

[Event "Brasil Copel Telecom SESC 2018"]
[Site "Caioba Matinhos"]
[Date "2018.08.05"]
[Round "9"]
[White "Almiron, Antonio"]
[Black "Umetsubo, Cesar Hidemitsu"]
[Result "1/2-1/2"]
[ECO "A48"]
[WhiteElo "2351"]
[BlackElo "2404"]
[Annotator "NA"]
[PlyCount "95"]
[EventDate "2018.08.01"]
[EventType "swiss"]
[EventCountry "BRA"]
[SourceTitle "playchess.com"]
[Source "ChessBase"]
[SourceQuality "1"]
[TimeControl "5400+30"]

1. d4 {[%emt 0:09:53]} d6 {[%emt 0:00:00]} 2. Nf3 {[%emt 0:00:32]} Nf6 {[%emt 0:03:30]} 3. Bf4 {[%emt 0:06:26]} g6 {[%emt 0:00:58]} 4. e3 {[%emt 0:02:13]} Bg7 {[%emt 0:02:43]} 5. Be2 {[%emt 0:00:00]} O-O {[%emt 0:00:06]} 6. O-O {[%emt 0:00:00]} c5 {[%emt 0:03:28]} 7. c3 {[%emt 0:00:00]} Qb6 {[%emt 0:01:39]} 8. Qb3 {[%emt 0:00:00]} Be6 {[%emt 0:02:51]} 9. Qa3 {[%emt 0:19:36]} Rc8 {[%emt 0:03:21]} 10. Nbd2 {[%emt 0:04:03]} Nc6 {[%emt 0:03:21]} 11. dxc5 {[%emt 0:00:00]} Qxc5 {[%emt 0:16:52]} 12. Qxc5 {[%emt 0:00:00]} dxc5 {[%emt 0:00:11]} 13. Ng5 {[%emt 0:04:09]} Bd7 {[%emt 0:04:20]} 14. Bc4 {[%emt 0:00:20]} Be8 {[%emt 0:06:48]} 15. h3 {[%emt 0:00:00]} Rd8 {[%emt 0:10:26]} 16. Nb3 {[%emt 0:04:29]} b6 {[%emt 0:05:54]} 17. Ba6 $11 {[%emt 0:10:56]} Nd5 {[%emt 0:00:00]} 18. Bh2 {[%emt 0:00:23]} e5 {[%emt 0:00:00]} 19. Nf3 {[%emt 0:02:12]} f6 {[%emt 0:02:45]} 20. Rfd1 {[%emt 0:01:35]} Nc7 {[%emt 0:02:35]} 21. Be2 {[%emt 0:03:41]} Bf8 {[%emt 0:02:11]} 22. g4 {[%emt 0:09:24]} Ne6 {[%emt 0:04:45]} 23. Bc4 {[%emt 0:00:00]} Bf7 {[%emt 0:01:19]} 24. Ba6 {[%emt 0:03:36]} Rab8 {[%emt 0:00:44]} 25. Bb5 {[%emt 0:02:22]} Rbc8 {[%emt 0:03:22]} 26. Ba6 {[%emt 0:00:00]} Rb8 {[%emt 0:01:39]} 27. Bb5 {[%emt 0:01:55]} Rbc8 {[%emt 0:02:16]} 28. Ba6 {[%emt 0:00:00]} Rxd1+ {[%emt 0:00:17]} 29. Rxd1 {[%emt 0:00:05]} Rd8 {[%emt 0:00:11]} 30. Rxd8 {[%emt 0:01:10]} Nexd8 {[%emt 0:02:41]} 31. Nfd2 {[%emt 0:01:56]} Be6 {[%emt 0:04:55]} 32. Kg2 {[%emt 0:00:00]} Kf7 {[%emt 0:00:00]} 33. f4 {[%emt 0:00:59]} e4 {[%emt 0:02:31]} 34. Nxe4 {[%emt 0:00:11]} Bd5 {[%emt 0:00:00]} 35. Nbd2 {[%emt 0:00:18]} f5 {[%emt 0:00:00]} 36. Bc4 {[%emt 0:04:18]} Ne7 {[%emt 0:01:11]} 37. Bxd5+ {[%emt 0:00:00]} Nxd5 {[%emt 0:00:01]} 38. Ng5+ {[%emt 0:00:00]} Kg8 {[%emt 0:01:10]} 39. Kf2 {[%emt 0:00:30]} Be7 {[%emt 0:01:52]} 40. Ngf3 {[%emt 0:01:42]} Nf6 {[%emt 0:05:47]} 41. gxf5 {[%emt 0:00:00]} gxf5 {[%emt 0:00:00]} 42. Bg3 {[%emt 0:00:00]} Nb7 {[%emt 0:00:00]} 43. Bh4 {[%emt 0:00:00]} Nd6 {[%emt 0:00:00]} 44. Ke2 {[%emt 0:02:00]} Nd5 {[%emt 0:02:06]} 45. Bxe7 {[%emt 0:00:00]} Nxe7 {[%emt 0:00:07]} 46. Kd3 {[%emt 0:00:00]} Nd5 {[%emt 0:01:05]} 47. a3 {[%emt 0:00:00]} Kf7 {[%emt 0:10:19]} 48. Ke2 {[%emt 0:00:00]} 1/2-1/2